[Event "European Womens-ch 2025"]
[Site "Rhodes"]
[Date "2025.04.03"]
[Round "4.38"]
[White "Nenova, Andzhelika"]
[Black "Lach, Aleksandra"]
[Result "1-0"]
[Annotator "RC"]
[ECO "B34"]
[WhiteElo "1903"]
[BlackElo "2208"]
[PlyCount "185"]
[EventDate "2025.03.29"]
[EventType "swiss"]
[EventCountry "GRE"]
[SourceTitle "playchess.com"]
[Source "ChessBase"]
[SourceQuality "1"]
[TimeControl "40/5400+30:1800+30"]

1. e4 {[%emt 0:00:12]} c5 {[%emt 0:00:26]} 2. Nf3 {[%emt 0:00:28]} Nc6 {[%emt 0:05:02]} 3. Nc3 {[%emt 0:00:23]} g6 {[%emt 0:00:22]} 4. d4 {[%emt 0:00:08]} cxd4 {[%emt 0:00:06]} 5. Nxd4 {[%emt 0:00:07]} Bg7 {[%emt 0:00:20]} 6. Be3 {[%emt 0:00:22]} Nf6 {[%emt 0:00:51]} 7. Nxc6 {[%emt 0:00:12]} bxc6 {[%emt 0:00:48]} 8. e5 {[%emt 0:00:11]} Ng8 {[%emt 0:00:10]} 9. Bd4 {[%emt 0:00:06]} Qa5 {[%emt 0:00:11]} 10. f4 {[%emt 1:33:21]} Rb8 {[%emt 0:00:48]} 11. Qd2 {[%emt 0:00:00]} Rxb2 {[%emt 0:06:03]} 12. Nd5 {[%emt 0:00:00]} Qxd2+ {[%emt 0:28:25]} 13. Kxd2 {[%emt 0:01:30]} Rb8 14. Nc7+ {[%emt 0:00:00]} Kd8 {[%emt 0:22:03]} 15. Na6 {[%emt 0:00:00]} Bxa6 {[%emt 0:05:51]} 16. Bxa6 {[%emt 0:00:00]} Rb4 {[%emt 0:01:40]} 17. Rab1 {[%emt 0:00:00]} Rxd4+ {[%emt 0:06:32]} 18. Ke3 {[%emt 0:00:00]} c5 {[%emt 0:00:47]} 19. c3 {[%emt 0:00:00]} Ra4 {[%emt 0:02:29]} 20. Rb8+ {[%emt 0:00:00]} Kc7 {[%emt 0:00:07]} 21. Rc8+ {[%emt 0:00:00]} Kb6 {[%emt 0:00:13]} 22. Bd3 {[%emt 0:00:00]} Nf6 {[%emt 0:10:55]} 23. Rb1+ {[%emt 0:00:00]} Rb4 {[%emt 0:00:03]} 24. Rxh8 {[%emt 0:00:00]} Nd5+ {[%emt 0:00:20]} 25. Kf3 {[%emt 0:00:00]} Rxb1 {[%emt 0:04:03]} 26. Rb8+ {[%emt 0:00:00]} Kc7 {[%emt 0:01:23]} 27. Rxb1 {[%emt 0:00:00]} f6 {[%emt 0:00:58]} 28. Rb5 {[%emt 0:00:00]} fxe5 {[%emt 0:00:56]} 29. fxe5 {[%emt 0:00:00]} Bxe5 {[%emt 0:02:03]} 30. Rxc5+ {[%emt 0:00:00]} Kd6 {[%emt 0:00:01]} 31. Ra5 {[%emt 0:00:00]} Bxc3 {[%emt 0:00:39]} 32. Rxa7 {[%emt 0:00:00]} e5 {[%emt 0:00:01]} 33. Bb5 {[%emt 0:00:00]} Nf6 {[%emt 0:00:38]} 34. a4 {[%emt 0:00:00]} Bd4 {[%emt 0:00:31]} 35. Ra8 {[%emt 0:00:00]} g5 {[%emt 0:00:44]} 36. Bc4 {[%emt 0:00:00]} e4+ {[%emt 0:00:18]} 37. Ke2 {[%emt 0:00:00]} Kc5 {[%emt 0:00:34]} 38. Rc8+ {[%emt 0:00:00]} Kb4 {[%emt 0:00:01]} 39. Bb5 {[%emt 0:00:00]} d5 {[%emt 0:00:16]} 40. Bc6 {[%emt 0:00:00]} h5 {[%emt 0:00:00]} 41. Rb8+ {[%emt 0:00:00]} Kc5 {[%emt 0:03:55]} 42. Ba8 {[%emt 0:00:00]} Be5 {[%emt 0:15:50]} 43. Rb1 {[%emt 0:00:00]} Bc3 {[%emt 0:05:06]} 44. Rc1 {[%emt 0:00:56]} d4 {[%emt 0:02:45]} 45. Rf1 {[%emt 0:06:35]} d3+ {[%emt 0:01:58]} 46. Ke3 {[%emt 0:00:22]} Bd4+ {[%emt 0:00:16]} 47. Kd2 {[%emt 0:00:18]} Be5 {[%emt 0:03:28]} 48. Bxe4 {[%emt 0:01:17]} Nxe4+ {[%emt 0:00:10]} 49. Kxd3 {[%emt 0:00:08]} Kd5 {[%emt 0:03:54]} 50. Rf5 {[%emt 0:01:40]} h4 {[%emt 0:00:00]} 51. h3 {[%emt 0:01:30]} Nc5+ {[%emt 0:00:00]} 52. Ke3 Nxa4 {[%emt 0:00:29]} 53. Rxg5 {[%emt 0:01:13]} Nb2 {[%emt 0:00:21]} 54. Rh5 {[%emt 0:00:36]} Nc4+ {[%emt 0:00:16]} 55. Kd3 {[%emt 0:00:22]} Nb2+ 56. Ke2 {[%emt 0:00:11]} Na4 {[%emt 0:01:23]} 57. Rxh4 {[%emt 0:00:30]} Nc5 {[%emt 0:00:30]} 58. Rh5 {[%emt 0:36:52]} Na4 {[%emt 0:00:27]} 59. Rh4 {[%emt 0:00:30]} Nc5 {[%emt 0:00:11]} 60. Ke3 {[%emt 0:00:30]} Ke6 {[%emt 0:01:53]} 61. Rh6+ {[%emt 0:00:00]} Bf6 {[%emt 0:00:00]} 62. g4 Kf7 {[%emt 0:00:00]} 63. Rh5 Ne6 {[%emt 0:00:20]} 64. Ra5 {[%emt 0:00:00]} Bh4 65. Kf3 {[%emt 0:02:30]} Ng5+ {[%emt 0:01:04]} 66. Kg2 {[%emt 0:00:00]} Ne6 {[%emt 0:00:14]} 67. Kh2 {[%emt 0:00:00]} Nf4 {[%emt 0:00:24]} 68. Ra8 {[%emt 0:00:00]} Ng6 {[%emt 0:00:13]} 69. Ra7+ {[%emt 0:00:00]} Kg8 {[%emt 0:01:02]} 70. Ra5 {[%emt 0:00:00]} Kg7 {[%emt 0:00:22]} 71. Kg2 {[%emt 0:00:00]} Nf4+ {[%emt 0:00:41]} 72. Kf3 {[%emt 0:00:00]} Ne6 {[%emt 0:00:30]} 73. Rh5 {[%emt 0:00:00]} Bf6 {[%emt 0:00:28]} 74. h4 {[%emt 0:00:00]} Kg6 {[%emt 0:00:22]} 75. Kg3 {[%emt 0:00:00]} Bd8 {[%emt 0:00:27]} 76. Rd5 {[%emt 0:00:00]} Bc7+ {[%emt 0:00:42]} 77. Kf3 {[%emt 0:00:00]} Nf8 {[%emt 0:00:31]} 78. h5+ {[%emt 0:00:00]} Kh6 {[%emt 0:00:51]} 79. Rc5 {[%emt 0:00:00]} Bh2 {[%emt 0:00:30]} 80. Ke4 {[%emt 0:00:00]} Bg1 {[%emt 0:00:30]} 81. Rc8 {[%emt 0:00:00]} Nd7 {[%emt 0:00:47]} 82. Kf5 {[%emt 0:00:00]} Nb6 {[%emt 0:00:13]} 83. g5+ {[%emt 0:00:00]} Kg7 {[%emt 0:00:10]} 84. Rc7+ {[%emt 0:00:00]} Kf8 {[%emt 0:01:39]} 85. Kg6 {[%emt 0:00:34]} Nd5 {[%emt 0:00:00]} 86. Rc8+ {[%emt 0:00:36]} Ke7 {[%emt 0:00:00]} 87. h6 {[%emt 0:01:27]} Nf4+ {[%emt 0:00:00]} 88. Kf5 {[%emt 0:08:53]} Ne6 {[%emt 0:02:00]} 89. h7 {[%emt 0:00:00]} Bd4 {[%emt 0:00:00]} 90. h8=Q {[%emt 0:00:00]} Bxh8 {[%emt 0:00:00]} 91. Rxh8 {[%emt 0:00:00]} Kf7 {[%emt 0:00:00]} 92. g6+ {[%emt 0:00:00]} Kg7 {[%emt 0:00:00]} 93. Rh7+ {[%emt 0:00:00]} 1-0

[Event "European Womens-ch 2025"]
[Site "Rhodes"]
[Date "2025.04.03"]
[Round "4.39"]
[White "Mamedjarova, Turkan"]
[Black "Deak-Sala, Emilia"]
[Result "1/2-1/2"]
[Annotator "RC"]
[ECO "B22"]
[WhiteElo "2206"]
[BlackElo "2112"]
[PlyCount "64"]
[EventDate "2025.03.29"]
[EventType "swiss"]
[EventCountry "GRE"]
[SourceTitle "playchess.com"]
[Source "ChessBase"]
[SourceQuality "1"]
[TimeControl "40/5400+30:1800+30"]

1. e4 {[%emt 1:31:00]} c5 {[%emt 0:05:06]} 2. c3 {[%emt 0:00:00]} Nf6 {[%emt 0:00:04]} 3. e5 {[%emt 0:00:00]} Nd5 {[%emt 0:00:03]} 4. d4 {[%emt 0:00:00]} cxd4 {[%emt 0:00:04]} 5. Qxd4 {[%emt 0:00:00]} e6 {[%emt 0:02:43]} 6. Nf3 {[%emt 0:00:00]} Nc6 {[%emt 0:05:16]} 7. Qe4 {[%emt 0:00:00]} d6 {[%emt 0:04:03]} 8. exd6 {[%emt 0:00:00]} Nf6 {[%emt 0:01:55]} 9. d7+ {[%emt 0:00:00]} Bxd7 {[%emt 0:02:05]} 10. Qc2 {[%emt 0:00:00]} Qc7 {[%emt 0:01:20]} 11. Be2 {[%emt 0:00:00]} Bd6 {[%emt 0:05:33]} 12. h3 {[%emt 0:00:00]} O-O {[%emt 0:04:06]} 13. O-O {[%emt 0:00:00]} Ne5 {[%emt 0:04:24]} 14. Bg5 {[%emt 0:00:00]} Nxf3+ {[%emt 0:01:23]} 15. Bxf3 {[%emt 0:00:00]} Bc6 {[%emt 0:00:39]} 16. Bxc6 {[%emt 0:00:00]} Qxc6 {[%emt 0:00:40]} 17. Bxf6 {[%emt 0:00:00]} gxf6 {[%emt 0:00:05]} 18. Nd2 {[%emt 0:00:00]} f5 {[%emt 0:03:30]} 19. Nf3 {[%emt 0:00:00]} Be7 {[%emt 0:06:03]} 20. Ne5 {[%emt 0:00:00]} Qc7 {[%emt 0:00:58]} 21. Qe2 {[%emt 0:00:00]} Bf6 {[%emt 0:01:22]} 22. f4 {[%emt 0:00:00]} Rfd8 {[%emt 0:02:28]} 23. Rad1 {[%emt 0:00:00]} Bxe5 {[%emt 0:02:28]} 24. fxe5 {[%emt 0:00:00]} Rxd1 {[%emt 0:00:28]} 25. Rxd1 {[%emt 0:00:00]} Rd8 {[%emt 0:00:11]} 26. Re1 {[%emt 0:00:00]} Rd5 {[%emt 0:02:08]} 27. Qf2 {[%emt 0:00:00]} Qc5 {[%emt 0:02:14]} 28. Re3 {[%emt 0:00:00]} Kf8 {[%emt 0:01:06]} 29. Qf4 {[%emt 0:00:00]} Rd3 {[%emt 0:10:11]} 30. Kf2 {[%emt 0:00:00]} Rd2+ {[%emt 0:00:27]} 31. Kg3 {[%emt 0:00:00]} Qd5 {[%emt 0:01:06]} 32. Rf3 {[%emt 0:00:00]} Rd3 {[%emt 0:00:56]} 1/2-1/2

[Event "European Womens-ch 2025"]
[Site "Rhodes"]
[Date "2025.04.03"]
[Round "4.40"]
[White "Gaboyan, Susanna"]
[Black "Sivanandan, Bodhana"]
[Result "1-0"]
[Annotator "RC"]
[ECO "C42"]
[WhiteElo "2200"]
[BlackElo "2073"]
[PlyCount "109"]
[EventDate "2025.03.29"]
[EventType "swiss"]
[EventCountry "GRE"]
[SourceTitle "playchess.com"]
[Source "ChessBase"]
[SourceQuality "1"]
[TimeControl "40/5400+30:1800+30"]

1. e4 {[%emt 0:01:58]} e5 {[%emt 0:00:48]} 2. Nf3 {[%emt 0:00:22]} Nf6 {[%emt 0:00:10]} 3. Nxe5 {[%emt 0:02:57]} d6 {[%emt 0:00:11]} 4. Nf3 {[%emt 0:00:05]} Nxe4 {[%emt 0:00:27]} 5. Nc3 {[%emt 0:00:05]} Nxc3 {[%emt 0:00:49]} 6. dxc3 {[%emt 0:00:05]} Be7 {[%emt 0:00:40]} 7. Be3 {[%emt 0:00:08]} O-O {[%emt 0:00:53]} 8. Qd2 {[%emt 0:00:08]} Nd7 {[%emt 0:00:16]} 9. O-O-O {[%emt 0:01:40]} Nf6 {[%emt 0:00:33]} 10. Bd3 {[%emt 0:07:33]} Be6 {[%emt 0:08:25]} 11. Nd4 {[%emt 0:05:33]} Qd7 {[%emt 0:03:47]} 12. Kb1 {[%emt 0:04:09]} a6 {[%emt 0:05:55]} 13. Rde1 {[%emt 0:02:37]} c5 {[%emt 0:07:46]} 14. Nxe6 {[%emt 0:00:29]} fxe6 {[%emt 0:00:20]} 15. Bg5 {[%emt 0:01:28]} Rae8 {[%emt 0:06:15]} 16. Qe3 {[%emt 0:06:24]} e5 {[%emt 0:06:37]} 17. Bxf6 {[%emt 0:03:45]} Rxf6 {[%emt 0:06:47]} 18. Qe4 {[%emt 0:01:45]} g6 {[%emt 0:06:52]} 19. h4 {[%emt 0:01:33]} Bf8 {[%emt 0:04:18]} 20. h5 {[%emt 0:11:03]} d5 {[%emt 0:10:53]} 21. Qh4 {[%emt 0:01:11]} Qg7 {[%emt 0:04:55]} 22. hxg6 {[%emt 0:00:53]} hxg6 {[%emt 0:00:21]} 23. c4 {[%emt 0:01:49]} Rf4 {[%emt 0:05:24]} 24. Qg3 {[%emt 0:05:47]} Rf6 {[%emt 0:02:08]} 25. cxd5 {[%emt 0:05:27]} Bd6 {[%emt 0:02:46]} 26. Be4 {[%emt 0:02:33]} Kf7 {[%emt 0:01:32]} 27. Rh3 {[%emt 0:03:20]} Rf4 {[%emt 0:02:04]} 28. f3 {[%emt 0:00:59]} Kf6 {[%emt 0:02:49]} 29. Reh1 {[%emt 0:00:39]} Rg8 {[%emt 0:01:15]} 30. Rh7 {[%emt 0:00:33]} Qf8 {[%emt 0:00:25]} 31. Qh3 {[%emt 0:02:36]} Qc8 {[%emt 0:01:08]} 32. Qxc8 {[%emt 0:00:43]} Rxc8 {[%emt 0:00:08]} 33. g3 {[%emt 0:00:04]} Rxe4 {[%emt 0:00:41]} 34. fxe4 {[%emt 0:00:05]} b5 {[%emt 0:01:46]} 35. Rh8 {[%emt 0:02:42]} Rc7 {[%emt 0:02:40]} 36. R1h7 {[%emt 0:00:08]} Be7 {[%emt 0:00:10]} 37. Ra8 {[%emt 0:01:17]} c4 {[%emt 0:00:53]} 38. Rxa6+ {[%emt 0:00:11]} Kg5 {[%emt 0:00:10]} 39. Re6 {[%emt 0:00:32]} Bd8 {[%emt 0:00:13]} 40. Rxc7 {[%emt 0:00:00]} Bxc7 {[%emt 0:00:00]} 41. d6 {[%emt 0:00:28]} Bd8 {[%emt 0:00:27]} 42. d7 {[%emt 0:00:11]} b4 {[%emt 0:00:13]} 43. a4 {[%emt 0:00:39]} bxa3 {[%emt 0:00:11]} 44. bxa3 {[%emt 0:00:04]} Kh5 {[%emt 0:00:09]} 45. a4 {[%emt 0:00:12]} g5 {[%emt 0:00:07]} 46. Rxe5 {[%emt 0:00:44]} Kg4 {[%emt 0:00:10]} 47. Re8 {[%emt 0:00:06]} Bc7 {[%emt 0:00:10]} 48. e5 {[%emt 0:00:20]} Kxg3 {[%emt 0:00:08]} 49. e6 {[%emt 0:00:04]} g4 {[%emt 0:00:12]} 50. e7 {[%emt 0:00:04]} Kg2 {[%emt 0:00:08]} 51. d8=Q {[%emt 0:00:05]} Bxd8 {[%emt 0:00:08]} 52. exd8=Q {[%emt 0:00:06]} g3 {[%emt 0:00:13]} 53. Qd2+ {[%emt 0:01:51]} Kh3 {[%emt 0:00:08]} 54. Rg8 {[%emt 0:01:00]} Kh4 {[%emt 0:00:06]} 55. Qh6# {[%emt 0:00:07]} 1-0

[Event "European Womens-ch 2025"]
[Site "Rhodes"]
[Date "2025.04.03"]
[Round "4.41"]
[White "Tsetskhladze, Mariam"]
[Black "Guichard, Pauline"]
[Result "0-1"]
[Annotator "RC"]
[ECO "B11"]
[WhiteElo "2105"]
[BlackElo "2355"]
[PlyCount "120"]
[EventDate "2025.03.29"]
[EventType "swiss"]
[EventCountry "GRE"]
[SourceTitle "playchess.com"]
[Source "ChessBase"]
[SourceQuality "1"]
[TimeControl "40/5400+30:1800+30"]

1. e4 {[%emt 0:00:04]} c6 {[%emt 0:00:05]} 2. Nc3 {[%emt 0:00:32]} d5 {[%emt 0:00:09]} 3. Nf3 {[%emt 0:02:43]} Bg4 {[%emt 0:00:12]} 4. h3 {[%emt 0:00:09]} Bxf3 {[%emt 0:00:10]} 5. Qxf3 {[%emt 0:00:06]} e6 {[%emt 0:00:09]} 6. Be2 {[%emt 0:00:08]} Bc5 {[%emt 0:00:24]} 7. Qg3 {[%emt 0:00:28]} Bd4 {[%emt 0:00:18]} 8. d3 {[%emt 0:00:56]} Nd7 {[%emt 0:01:34]} 9. Be3 {[%emt 0:01:07]} Be5 {[%emt 0:12:57]} 10. f4 {[%emt 0:17:46]} Bf6 {[%emt 0:04:43]} 11. Bf2 {[%emt 0:08:24]} d4 {[%emt 0:02:00]} 12. Nb1 {[%emt 0:04:01]} Qa5+ {[%emt 0:05:07]} 13. Nd2 {[%emt 0:09:17]} e5 {[%emt 0:08:04]} 14. f5 {[%emt 0:06:09]} Ne7 {[%emt 0:03:35]} 15. a3 {[%emt 0:03:01]} c5 {[%emt 0:01:31]} 16. Rd1 {[%emt 0:04:22]} b5 {[%emt 0:00:57]} 17. O-O {[%emt 0:00:09]} Rc8 {[%emt 0:04:24]} 18. Qh2 {[%emt 0:05:08]} Qa4 {[%emt 0:15:17]} 19. b3 {[%emt 0:11:18]} Qa5 {[%emt 0:11:34]} 20. Nf3 {[%emt 0:01:44]} h5 {[%emt 0:07:00]} 21. h4 {[%emt 0:09:45]} Nc6 {[%emt 0:00:38]} 22. Bg3 {[%emt 0:05:30]} Qc7 {[%emt 0:03:48]} 23. Rc1 {[%emt 0:01:12]} Qd6 {[%emt 0:02:04]} 24. Rfd1 {[%emt 0:01:13]} Nb6 {[%emt 0:01:45]} 25. Nd2 {[%emt 0:01:39]} a5 {[%emt 0:01:17]} 26. Ra1 {[%emt 0:02:27]} a4 {[%emt 0:03:41]} 27. Rdb1 {[%emt 0:01:01]} Ra8 {[%emt 0:00:25]} 28. Kh1 {[%emt 0:00:48]} Qe7 {[%emt 0:03:03]} 29. Bf1 {[%emt 0:01:06]} axb3 {[%emt 0:01:00]} 30. cxb3 {[%emt 0:00:49]} Ra6 {[%emt 0:01:00]} 31. Rc1 {[%emt 0:01:46]} O-O {[%emt 0:05:12]} 32. Ra2 {[%emt 0:01:08]} Rfa8 {[%emt 0:00:15]} 33. Rac2 {[%emt 0:00:27]} Nd7 {[%emt 0:01:09]} 34. Nb1 {[%emt 0:00:13]} Na5 {[%emt 0:00:50]} 35. Nd2 {[%emt 0:00:48]} Qd6 {[%emt 0:01:09]} 36. Be2 {[%emt 0:00:27]} c4 {[%emt 0:00:12]} 37. bxc4 {[%emt 0:00:26]} bxc4 {[%emt 0:00:04]} 38. Nxc4 {[%emt 0:00:05]} Nxc4 {[%emt 0:00:06]} 39. Rxc4 {[%emt 0:00:05]} Rxa3 {[%emt 0:00:20]} 40. Qg1 {[%emt 0:00:00]} Qe7 {[%emt 0:00:00]} 41. Qe1 {[%emt 0:07:02]} Kh7 {[%emt 0:01:31]} 42. Qf2 {[%emt 0:04:07]} Ra2 {[%emt 0:13:25]} 43. Qf3 {[%emt 0:05:39]} g6 {[%emt 0:00:03]} 44. Rc7 {[%emt 0:03:49]} Kg7 {[%emt 0:00:25]} 45. Be1 {[%emt 0:07:15]} Ra1 {[%emt 0:03:01]} 46. g3 {[%emt 0:03:00]} Rxc1 {[%emt 0:02:31]} 47. Rxc1 {[%emt 0:00:04]} Ra2 {[%emt 0:00:06]} 48. fxg6 {[%emt 0:01:51]} fxg6 {[%emt 0:00:26]} 49. Bf1 {[%emt 0:00:39]} Qe6 {[%emt 0:07:51]} 50. Qd1 {[%emt 0:01:16]} Kh7 {[%emt 0:00:49]} 51. Rc7 {[%emt 0:01:05]} Bg7 {[%emt 0:01:59]} 52. Qb1 {[%emt 0:00:49]} Nf6 {[%emt 0:00:13]} 53. Rc2 {[%emt 0:01:17]} Ra3 {[%emt 0:01:48]} 54. Bf2 {[%emt 0:00:34]} Qa6 {[%emt 0:01:58]} 55. Qb8 {[%emt 0:00:32]} Nxe4 {[%emt 0:01:31]} 56. Be1 {[%emt 0:00:29]} Ra1 {[%emt 0:00:34]} 57. Re2 {[%emt 0:00:33]} Qxd3 {[%emt 0:00:38]} 58. Qb2 {[%emt 0:00:16]} Rb1 {[%emt 0:01:08]} 59. Qa2 {[%emt 0:00:25]} Nxg3+ {[%emt 0:00:55]} 60. Bxg3 {[%emt 0:00:15]} Rxf1+ {[%emt 0:00:16]} 0-1

[Event "European Womens-ch 2025"]
[Site "Rhodes"]
[Date "2025.04.03"]
[Round "4.42"]
[White "Sliwicka, Alicja"]
[Black "Vidic, Teja"]
[Result "1-0"]
[Annotator "RC"]
[ECO "C55"]
[WhiteElo "2342"]
[BlackElo "2100"]
[PlyCount "67"]
[EventDate "2025.03.29"]
[EventType "swiss"]
[EventCountry "GRE"]
[SourceTitle "playchess.com"]
[Source "ChessBase"]
[SourceQuality "1"]
[TimeControl "40/5400+30:1800+30"]

1. e4 {[%emt 0:00:06]} e5 {[%emt 0:00:05]} 2. Nf3 {[%emt 0:00:10]} Nc6 {[%emt 0:00:05]} 3. Bc4 {[%emt 0:00:06]} Nf6 {[%emt 0:00:06]} 4. d3 {[%emt 0:00:10]} Be7 {[%emt 0:00:04]} 5. Nc3 {[%emt 0:01:38]} O-O {[%emt 0:00:18]} 6. O-O {[%emt 0:01:59]} d6 {[%emt 0:00:16]} 7. a4 {[%emt 0:01:48]} Be6 {[%emt 0:00:21]} 8. Nd5 {[%emt 0:01:51]} h6 {[%emt 0:00:13]} 9. Re1 {[%emt 0:04:38]} Qd7 {[%emt 0:00:59]} 10. c3 {[%emt 0:02:48]} Rae8 {[%emt 0:00:46]} 11. a5 {[%emt 0:06:03]} a6 {[%emt 0:08:23]} 12. b4 {[%emt 0:05:55]} Bd8 {[%emt 0:12:54]} 13. Bb3 {[%emt 0:07:27]} Qc8 {[%emt 0:03:17]} 14. Bd2 {[%emt 0:06:51]} Nb8 {[%emt 0:08:12]} 15. c4 {[%emt 0:03:53]} c6 {[%emt 0:05:45]} 16. Nc3 {[%emt 0:00:30]} Nbd7 {[%emt 0:03:52]} 17. Nh4 {[%emt 0:02:02]} Bc7 {[%emt 0:21:05]} 18. Qf3 {[%emt 0:02:25]} c5 {[%emt 0:07:17]} 19. b5 {[%emt 0:03:31]} Nb8 {[%emt 0:03:21]} 20. h3 {[%emt 0:06:07]} Bd8 {[%emt 0:01:40]} 21. Bd1 {[%emt 0:06:02]} axb5 {[%emt 0:03:31]} 22. Nxb5 {[%emt 0:00:06]} Qd7 {[%emt 0:01:36]} 23. Ba4 {[%emt 0:00:52]} Qe7 {[%emt 0:03:11]} 24. Na7 {[%emt 0:02:33]} Bd7 {[%emt 0:02:20]} 25. Nf5 {[%emt 0:00:43]} Qe6 {[%emt 0:00:37]} 26. Bxd7 {[%emt 0:03:50]} Nbxd7 {[%emt 0:01:19]} 27. Nb5 {[%emt 0:00:45]} Nh7 {[%emt 0:05:50]} 28. Qg3 {[%emt 0:03:44]} Bg5 {[%emt 0:01:02]} 29. h4 {[%emt 0:00:42]} g6 {[%emt 0:01:10]} 30. hxg5 {[%emt 0:07:15]} gxf5 {[%emt 0:00:21]} 31. exf5 {[%emt 0:00:30]} Qxf5 {[%emt 0:00:14]} 32. Nxd6 {[%emt 0:00:52]} Qg6 {[%emt 0:00:05]} 33. Nxe8 {[%emt 0:00:43]} Rxe8 {[%emt 0:00:04]} 34. gxh6 {[%emt 0:00:34]} 1-0

[Event "European Womens-ch 2025"]
[Site "Rhodes"]
[Date "2025.04.03"]
[Round "4.43"]
[White "Ter-Avetisjana, Agnesa Stepania"]
[Black "Schippke, Manon"]
[Result "1-0"]
[Annotator "ChessBase"]
[ECO "B54"]
[WhiteElo "2100"]
[BlackElo "2247"]
[PlyCount "101"]
[EventDate "2025.03.29"]
[EventType "swiss"]
[EventCountry "GRE"]
[SourceTitle "playchess.com"]
[Source "ChessBase"]
[SourceQuality "1"]
[TimeControl "40/5400+30:1800+30"]

1. e4 {[%emt 0:02:14]} c5 {[%emt 0:00:05]} 2. Nf3 {[%emt 0:00:06]} d6 {[%emt 0:00:03]} 3. Bb5+ {[%emt 0:00:18]} Nc6 {[%emt 0:00:05]} 4. O-O {[%emt 0:07:20]} Bd7 {[%emt 0:00:05]} 5. d4 {[%emt 0:07:01]} cxd4 {[%emt 0:00:37]} 6. Nxd4 {[%emt 0:01:12]} g6 {[%emt 0:04:31]} 7. c4 {[%emt 0:10:43]} Bg7 {[%emt 0:01:26]} 8. Be3 {[%emt 0:00:24]} Nf6 {[%emt 0:01:06]} 9. Nc3 {[%emt 0:00:48]} O-O {[%emt 0:01:35]} 10. f3 {[%emt 0:04:29]} a6 {[%emt 0:00:57]} 11. Bxc6 {[%emt 0:08:10]} bxc6 {[%emt 0:00:08]} 12. Qd2 {[%emt 0:03:06]} Qb8 {[%emt 0:06:34]} 13. Rab1 {[%emt 0:05:22]} e5 {[%emt 0:06:01]} 14. Nc2 {[%emt 0:05:37]} Be6 {[%emt 0:00:09]} 15. b3 {[%emt 0:01:48]} Rd8 {[%emt 0:01:44]} 16. Bg5 {[%emt 0:02:14]} Rd7 {[%emt 0:00:52]} 17. Na4 {[%emt 0:06:00]} Qc7 {[%emt 0:04:27]} 18. Qf2 {[%emt 0:04:37]} Rb8 {[%emt 0:01:13]} 19. Rfd1 {[%emt 0:03:01]} h6 {[%emt 0:04:48]} 20. Be3 {[%emt 0:02:42]} Nh5 {[%emt 0:02:22]} 21. Rd2 {[%emt 0:08:02]} d5 {[%emt 0:14:09]} 22. Bb6 {[%emt 0:01:49]} Qb7 {[%emt 0:01:06]} 23. Rbd1 {[%emt 0:03:34]} d4 {[%emt 0:01:53]} 24. Ne1 {[%emt 0:01:34]} Re7 {[%emt 0:06:22]} 25. Bc5 {[%emt 0:02:54]} Ree8 {[%emt 0:01:46]} 26. Nd3 {[%emt 0:00:38]} Qc7 {[%emt 0:00:39]} 27. Rf1 {[%emt 0:06:30]} f5 {[%emt 0:08:09]} 28. Qe1 {[%emt 0:00:10]} Bd7 {[%emt 0:01:34]} 29. Qc1 {[%emt 0:00:59]} Bf6 {[%emt 0:02:02]} 30. Qa3 {[%emt 0:00:22]} Re6 {[%emt 0:00:02]} 31. Re2 {[%emt 0:01:23]} Bg5 {[%emt 0:00:46]} 32. exf5 {[%emt 0:00:34]} gxf5 {[%emt 0:00:03]} 33. Rxe5 {[%emt 0:00:29]} Bf4 {[%emt 0:02:21]} 34. Nxf4 {[%emt 0:00:17]} Qxe5 {[%emt 0:00:03]} 35. Nxe6 {[%emt 0:00:17]} Bxe6 {[%emt 0:00:04]} 36. Qc1 {[%emt 0:00:45]} Nf4 {[%emt 0:01:41]} 37. Qd2 {[%emt 0:00:10]} d3 {[%emt 0:00:08]} 38. Qe3 {[%emt 0:01:19]} Qc7 {[%emt 0:01:33]} 39. Bb6 {[%emt 0:00:30]} Qd6 {[%emt 0:00:08]} 40. Bc5 {[%emt 0:00:00]} Qc7 {[%emt 0:00:00]} 41. g3 {[%emt 0:02:45]} Nh3+ {[%emt 0:03:53]} 42. Kg2 {[%emt 0:12:22]} Ng5 {[%emt 0:00:58]} 43. Qf4 {[%emt 0:04:37]} Qd8 {[%emt 0:04:34]} 44. Bd6 {[%emt 0:01:34]} Rc8 {[%emt 0:00:40]} 45. Rd1 {[%emt 0:03:05]} Qe8 {[%emt 0:03:57]} 46. Nc3 {[%emt 0:04:22]} Bd5 {[%emt 0:01:18]} 47. cxd5 {[%emt 0:01:49]} cxd5 {[%emt 0:00:05]} 48. Qe5 {[%emt 0:00:22]} Qh5 {[%emt 0:03:17]} 49. Qxd5+ {[%emt 0:00:29]} Kg7 {[%emt 0:00:21]} 50. Be5+ {[%emt 0:00:56]} Kg6 {[%emt 0:00:06]} 51. h4 {[%emt 0:01:48]} 1-0